bitfinex-derivatives/quotes_SOLF0:USTF0_20260105
["timestamp","ask_amount","ask_price","bid_price","bid_amount"]
[1767632099775,87.24,135.53,135.45,7.04968487]
[1767632100373,87.24,135.53,135.45,0.40378487]
[1767632100573,1.86154488,135.52,135.45,0.40378487]
[1767632101675,1.86154488,135.5,135.43,0.40285907]
[1767632102373,8.50534488,135.5,135.43,0.40285907]
[1767632105674,8.50534488,135.5,135.42,6.6475]
[1767632105979,1.86154488,135.48,135.41,0.40285907]
[1767632107068,6.6454,135.47,135.39,89.08154488]
[1767632107266,6.6454,135.47,135.39,0.40285907]
[1767632107780,1.86154488,135.46,135.39,0.40285907]
[1767632108677,8.50724488,135.46,135.39,0.40285907]
[1767632109271,8.50724488,135.46,135.39,7.05185907]
[1767632113080,6.6457,135.46,135.39,7.05185907]
[1767632113282,8.50724488,135.46,135.39,7.05185907]
[1767632113777,1.86154488,135.46,135.4,7.05135907]
[1767632113981,87.22,135.48,135.4,0.40285907]
[1767632114783,93.8647,135.48,135.41,7.05085907]
[1767632115472,87.22,135.48,135.43,0.40285907]
[1767632115678,103.3133,135.55,135.43,0.40285907]
[1767632115884,1.86154488,135.52,135.43,0.40285907]
[1767632116583,8.50434488,135.52,135.45,6.6461]
[1767632117784,8.50434488,135.52,135.43,7.04955907]
[1767632117976,8.50434488,135.52,135.44,0.40285907]
[1767632118582,87.22,135.53,135.45,7.04885907]
[1767632118783,1.86154488,135.52,135.45,7.04885907]
[1767632120685,1.86154488,135.5,135.43,6.6467]
[1767632120887,1.86154488,135.5,135.42,0.40285907]
[1767632122590,1.86154488,135.5,135.42,7.05045907]
[1767632122890,1.86154488,135.5,135.42,0.40285907]
[1767632123391,8.50534488,135.5,135.43,6.6471]
[1767632123588,1.86154488,135.48,135.39,0.40285907]
[1767632123791,1.86154488,135.46,135.39,0.40285907]
[1767632125693,8.50714488,135.46,135.39,7.05175907]
[1767632126294,1.86154488,135.46,135.39,7.05175907]
[1767632128494,8.50714488,135.46,135.39,7.05175907]
[1767632130097,6.6452,135.47,135.39,7.05175907]
[1767632130288,1.86154488,135.46,135.39,7.05175907]
[1767632132099,8.50714488,135.46,135.39,7.05175907]
[1767632135898,93.8651,135.48,135.41,0.3831743]
[1767632136093,89.08154488,135.48,135.41,0.3831743]
[1767632136598,8.50524488,135.5,135.42,7.0307743]
[1767632137003,6.6437,135.5,135.43,7.0302743]
[1767632137194,8.50524488,135.5,135.43,7.0302743]
[1767632138403,1.86154488,135.5,135.44,6.6465]
[1767632138807,89.10154488,135.52,135.44,0.3831743]
[1767632139000,89.10154488,135.52,135.45,7.0291743]
[1767632141206,95.74424488,135.52,135.45,7.0291743]
[1767632142494,95.74424488,135.52,135.45,0.3831743]
[1767632142697,1.86154488,135.5,135.43,7.0299743]
[1767632142901,1.86154488,135.5,135.39,0.3831743]
[1767632143101,1.86154488,135.48,135.4,0.3831743]
[1767632144725,1.86154488,135.48,135.42,0.3831743]
[1767632147018,8.50624488,135.48,135.42,0.3831743]
[1767632147220,190.5751,135.52,135.39,1.86154488]
[1767632147221,1.86154488,135.46,135.39,7.0318743]
[1767632147724,1.86154488,135.46,135.4,0.3831743]
[1767632149408,6.6451,135.48,135.4,7.0317743]
[1767632149713,1.86154488,135.47,135.4,7.0317743]
[1767632152316,8.50694488,135.47,135.4,0.3831743]
[1767632154520,6.6454,135.47,135.4,7.0315743]
[1767632155724,9.55500687,135.49,135.41,7.00298472]
[1767632156922,6.6447,135.48,135.41,7.00298472]
[1767632157720,6.6439,135.5,135.43,7.00198472]
[1767632157921,90.13040687,135.53,135.44,0.35488472]
[1767632158322,93.8622,135.53,135.45,6.646]
[1767632158623,93.8622,135.53,135.46,0.35488472]
[1767632158928,5.55596627,135.52,135.46,0.35488472]
[1767632159120,93.8622,135.53,135.46,0.35488472]
[1767632159321,5.55539212,135.52,135.46,0.35488472]
[1767632159631,93.8622,135.53,135.46,0.35488472]
[1767632159817,5.55539389,135.52,135.46,0.35488472]
[1767632160022,93.8622,135.53,135.46,0.35488472]
[1767632160222,5.5580391,135.52,135.46,0.35488472]
[1767632160529,93.8622,135.53,135.46,0.35488472]
[1767632160730,5.55828717,135.52,135.46,0.35488472]
[1767632160933,93.8622,135.53,135.46,0.35488472]
[1767632161132,5.55826343,135.52,135.46,0.35488472]
[1767632161429,93.8622,135.53,135.46,0.35488472]
[1767632161627,2.91040687,135.49,135.37,0.36904962]
[1767632161825,5.55741906,135.48,135.37,0.36904962]
[1767632162126,2.91040687,135.49,135.4,6.6486]
[1767632162331,5.55483269,135.48,135.4,6.6486]
[1767632162528,2.91040687,135.49,135.4,6.6486]
[1767632162729,5.55544898,135.48,135.4,6.6486]
[1767632163023,6.6452,135.47,135.4,6.6486]
[1767632164132,9.55500687,135.49,135.4,7.01764962]
[1767632164331,5.55455254,135.48,135.4,7.01764962]
[1767632164530,2.91040687,135.51,135.41,0.36904962]
[1767632164736,5.55626105,135.5,135.41,0.36904962]
[1767632164933,90.13040687,135.51,135.41,0.36904962]
[1767632165234,12.1995332,135.5,135.41,0.36904962]
[1767632165435,6.6438,135.5,135.41,0.36904962]
[1767632166522,6.6438,135.5,135.42,6.6476]
[1767632166726,6.6438,135.5,135.42,7.01664962]
[1767632167431,6.6442,135.49,135.42,0.36904962]
[1767632173646,6.6449,135.48,135.39,0.36904962]
[1767632173838,87.22,135.5,135.4,0.36904962]
[1767632174141,6.6447,135.48,135.4,7.01764962]
[1767632174541,90.13040687,135.5,135.4,0.36904962]
[1767632174734,5.55761847,135.49,135.4,0.36904962]
[1767632174935,5.55761847,135.48,135.4,0.36904962]
[1767632175138,90.13040687,135.5,135.4,0.36904962]
[1767632175344,5.5579571,135.49,135.4,0.36904962]
[1767632175538,6.6452,135.47,135.4,0.36904962]
[1767632176441,6.6452,135.47,135.4,7.01714962]
[1767632176643,6.6452,135.47,135.4,0.36904962]
[1767632177543,6.6452,135.47,135.41,6.6481]
[1767632178846,6.6446,135.49,135.41,6.6481]
[1767632179049,5.5588495,135.48,135.41,6.6481]
[1767632179251,6.6446,135.49,135.41,6.6481]
[1767632179548,12.20413908,135.48,135.41,6.6481]
[1767632179846,6.6448,135.48,135.41,6.6481]
[1767632181450,93.8648,135.48,135.41,6.6481]
[1767632181850,5.56246333,135.47,135.41,6.6481]
[1767632182148,93.8648,135.48,135.41,6.6481]
[1767632182551,6.6448,135.48,135.41,6.6481]
[1767632182754,93.8648,135.48,135.41,6.6481]
[1767632183151,6.6453,135.47,135.39,6.6487]
[1767632183450,90.13040687,135.48,135.39,6.6487]
[1767632183753,5.56342514,135.47,135.39,6.6487]
[1767632183949,5.56342514,135.46,135.39,7.01774962]
[1767632184153,90.13040687,135.48,135.39,7.01774962]
[1767632184352,5.56545096,135.47,135.39,7.01774962]
[1767632184555,12.21115096,135.46,135.39,7.01774962]
[1767632184756,6.6457,135.46,135.39,7.01774962]
[1767632187253,193.49640687,135.48,135.39,0.36904962]
[1767632187453,2.91040687,135.46,135.37,0.36904962]
[1767632187652,2.91040687,135.44,135.34,0.36904962]
[1767632187967,6.6472,135.43,135.36,6.6505]
[1767632188148,2.91040687,135.46,135.37,0.36904962]
[1767632188351,92.78653603,135.45,135.37,0.36904962]
[1767632188555,5.56653603,135.44,135.38,7.01854962]
[1767632188849,93.8665,135.45,135.38,7.01854962]
[1767632189054,5.56518409,135.44,135.38,7.01854962]
[1767632189258,93.8665,135.45,135.38,7.01854962]
[1767632189458,5.55086905,135.44,135.38,7.01854962]
[1767632189665,93.8665,135.45,135.38,7.01854962]
[1767632189854,5.55086166,135.44,135.38,7.01854962]
[1767632190159,93.8665,135.45,135.38,7.01854962]
[1767632190364,5.55147497,135.44,135.39,0.36904962]
[1767632190559,93.8665,135.45,135.39,0.36904962]
[1767632191867,2.91040687,135.44,135.35,0.35243285]
[1767632192050,5.54884909,135.43,135.35,0.35243285]
[1767632192253,2.91040687,135.44,135.35,0.35243285]
[1767632192452,5.54711816,135.43,135.35,0.35243285]
[1767632192649,2.91040687,135.44,135.35,0.35243285]
[1767632192953,2.91040687,135.42,135.33,41.97144182]
[1767632193152,5.5456699,135.41,135.33,35.31964182]
[1767632193353,87.24,135.4,135.33,34.96720897]
[1767632193553,87.24,135.4,135.33,35.31964182]
[1767632194052,87.24,135.4,135.33,41.97164182]
[1767632197264,6.6485,135.41,135.34,0.35243285]
[1767632197463,93.9085,135.41,135.34,0.35243285]
[1767632203174,93.9085,135.41,135.34,7.00393285]
[1767632203474,93.9076,135.42,135.35,0.35243285]
[1767632204676,93.9076,135.42,135.35,7.00343285]
[1767632205567,93.9076,135.42,135.35,0.35243285]
[1767632206376,6.6481,135.41,135.34,6.6515]
[1767632206572,6.6481,135.41,135.33,35.31964182]
[1767632206775,90.17040687,135.42,135.31,0.35243285]
[1767632207277,6.6497,135.38,135.31,0.35243285]
[1767632208176,6.649,135.4,135.34,0.35243285]
[1767632208983,6.649,135.4,135.33,6.6519]
[1767632209576,6.649,135.4,135.33,7.00433285]
[1767632213388,87.28,135.43,135.35,0.34445405]
[1767632213983,87.28,135.43,135.36,6.99495405]
[1767632215993,87.28,135.43,135.37,6.6499]
[1767632216194,87.28,135.43,135.37,6.99435405]
[1767632217686,87.28,135.43,135.38,0.34445405]
[1767632218198,95.78956776,135.46,135.38,6.99385405]
[1767632218492,95.78956776,135.46,135.39,0.34445405]
[1767632218493,89.14346776,135.46,135.39,0.34445405]
[1767632218683,87.28,135.46,135.4,6.6484]
[1767632219789,87.28,135.46,135.41,6.6481]
[1767632220689,87.28,135.46,135.41,6.99255405]
[1767632221195,1.86346776,135.47,135.41,6.99255405]
[1767632221495,89.12346776,135.49,135.41,6.99255405]
[1767632221992,89.12346776,135.49,135.42,0.36346073]
[1767632222599,1.86346776,135.47,135.4,0.36346073]
[1767632222791,1.86346776,135.47,135.42,6.6476]
[1767632223798,89.12346776,135.49,135.42,6.6476]
[1767632224289,89.12346776,135.49,135.43,6.6471]
[1767632225396,89.12346776,135.49,135.42,0.36346073]
[1767632226689,89.12346776,135.49,135.42,7.01106073]
[1767632226890,89.12346776,135.49,135.42,0.36346073]
[1767632227290,89.12346776,135.49,135.43,6.647]
[1767632228199,1.86346776,135.47,135.41,6.6477]
[1767632228787,87.26,135.49,135.43,0.36346073]
[1767632229192,1.86346776,135.49,135.41,0.36346073]
[1767632229598,8.50766776,135.49,135.42,6.6472]
[1767632229898,1.86346776,135.47,135.39,0.36346073]
[1767632230695,1.86346776,135.47,135.41,6.6481]
[1767632233302,1.86346776,135.47,135.41,7.01156073]
[1767632239215,1.86346776,135.48,135.43,0.36346073]
[1767632239602,6.6442,135.49,135.43,0.36346073]
[1767632239808,1.86346776,135.49,135.44,0.36346073]
[1767632240205,93.8837,135.51,135.44,0.36346073]
[1767632240514,95.74716776,135.51,135.44,0.36346073]
[1767632241701,95.74716776,135.51,135.44,7.00996073]
[1767632242514,95.74716776,135.51,135.45,7.00956073]
[1767632243008,89.10346776,135.51,135.45,7.00956073]
[1767632243211,1.86346776,135.54,135.47,0.36346073]
[1767632244709,8.50526776,135.54,135.47,7.00856073]
[1767632245313,8.50526776,135.54,135.48,0.36346073]
[1767632246109,8.50526776,135.54,135.47,6.6451]
[1767632246297,1.86346776,135.52,135.47,6.6451]
[1767632252613,111.70486437,135.55,135.44,0.33836216]
[1767632252614,1.86346776,135.5,135.44,0.33836216]
[1767632253105,1.86346776,135.48,135.42,0.33836216]
[1767632253814,1.86346776,135.49,135.42,0.33836216]
[1767632254615,1.86346776,135.49,135.43,6.6469]
[1767632255512,87.2,135.5,135.44,6.6463]
[1767632255814,1.86346776,135.49,135.44,6.6463]
[1767632256022,1.86346776,135.49,135.42,6.6473]
[1767632259309,1.86346776,135.49,135.42,6.98566216]
[1767632259815,1.86346776,135.49,135.43,6.6469]
[1767632260410,1.86346776,135.49,135.43,6.98526216]
[1767632261818,1.86346776,135.49,135.43,6.6469]
[1767632265815,1.86346776,135.45,135.4,6.6486]
[1767632266021,1.86346776,135.45,135.39,0.33836216]
[1767632267616,1.86346776,135.43,135.39,0.33836216]
[1767632267823,1.86346776,135.43,135.35,0.33836216]
[1767632268123,1.86346776,135.42,135.35,0.33836216]
[1767632268712,1.86346776,135.42,135.37,6.98836216]
[1767632269019,1.86346776,135.44,135.38,0.33836216]
[1767632270624,1.86346776,135.44,135.38,6.98776216]
[1767632274612,96.77817647,135.45,135.38,6.98776216]
[1767632274812,90.13197647,135.45,135.36,6.97901321]
[1767632275517,6.6472,135.43,135.36,6.97901321]
[1767632276125,2.91197647,135.43,135.34,6.97991321]
[1767632276326,2.91197647,135.41,135.31,0.32881321]
[1767632276626,87.24,135.4,135.31,0.32881321]
[1767632277212,87.24,135.4,135.32,6.98091321]
[1767632278020,93.8886,135.4,135.32,6.98091321]
[1767632279727,6.6492,135.39,135.32,0.32881321]
[1767632279925,87.24,135.4,135.32,0.32881321]
[1767632280327,6.6493,135.39,135.32,0.32881321]
[1767632281632,6.6493,135.39,135.32,6.98131321]
[1767632282032,2.91197647,135.39,135.29,0.35363728]
[1767632282833,2.91197647,135.37,135.29,0.35363728]
[1767632283134,2.91197647,135.37,135.26,0.35363728]
[1767632283329,9.56307647,135.35,135.27,6.6547]
[1767632283521,96.82307647,135.35,135.27,7.00833728]
[1767632284527,6.6517,135.34,135.27,0.35363728]
[1767632284728,90.17197647,135.35,135.27,0.35363728]
[1767632286535,90.17197647,135.35,135.27,7.00853728]
[1767632289435,90.17197647,135.35,135.27,0.35363728]
[1767632289640,103.4496,135.37,135.27,0.35363728]
[1767632289641,2.91197647,135.37,135.27,0.35363728]
[1767632289842,87.28,135.37,135.27,0.35363728]
[1767632290040,6.6495,135.39,135.32,0.35363728]
[1767632290236,2.91197647,135.43,135.32,0.35363728]
[1767632290539,87.28,135.41,135.32,0.35363728]
[1767632291138,87.28,135.41,135.34,7.00503728]
[1767632291340,87.28,135.41,135.35,0.35363728]
[1767632293447,87.28,135.41,135.35,7.00453728]
[1767632294838,87.28,135.41,135.36,6.6503]
[1767632295040,9.55897647,135.44,135.36,7.00393728]
[1767632295041,96.83897647,135.44,135.36,7.00393728]
[1767632295240,2.91197647,135.46,135.37,0.35363728]
[1767632295441,93.9262,135.45,135.37,0.35363728]
[1767632296543,93.9262,135.45,135.37,7.00333728]
[1767632296750,6.6467,135.44,135.37,7.00333728]
[1767632297448,93.9262,135.45,135.37,7.00333728]
[1767632301048,87.28,135.45,135.38,7.00313728]
[1767632301247,87.28,135.45,135.39,0.35363728]
[1767632301844,87.28,135.45,135.37,0.35363728]
[1767632302552,87.28,135.45,135.38,7.00293728]
[1767632302749,87.28,135.45,135.38,0.35363728]
[1767632303059,93.9051,135.48,135.38,0.35363728]
[1767632303651,96.81707647,135.48,135.39,0.35363728]
[1767632303858,6.6454,135.47,135.39,0.35363728]
[1767632305550,6.6458,135.46,135.39,0.35363728]
[1767632306751,193.53947647,135.48,135.36,0.35363728]
[1767632306955,2.91197647,135.46,135.36,7.00383728]
[1767632308643,6.6466,135.44,135.36,7.00383728]
[1767632308844,6.6466,135.44,135.37,6.65]
[1767632309253,6.6466,135.44,135.36,0.35363728]
[1767632309853,87.26,135.43,135.36,0.35363728]
[1767632310047,87.26,135.43,135.36,7.00413728]
[1767632313056,93.9071,135.43,135.36,7.00413728]
[1767632314162,87.26,135.43,135.37,6.98961]
[1767632314465,2.91197647,135.49,135.38,0.33961]
[1767632314766,87.26,135.48,135.38,0.33961]
[1767632315061,87.26,135.48,135.4,6.6484]
[1767632315262,87.26,135.48,135.4,6.98801]
[1767632315457,87.26,135.48,135.41,0.33961]
[1767632315857,93.9047,135.48,135.41,6.98761]
[1767632316564,6.6447,135.48,135.41,6.98761]
[1767632316763,2.91197647,135.49,135.41,6.98761]
[1767632317264,6.6439,135.5,135.42,6.98701]
[1767632321066,6.6442,135.49,135.42,6.98701]
[1767632323171,96.81557647,135.51,135.43,0.33961]
[1767632323370,93.9036,135.51,135.44,0.33961]
[1767632325569,93.9036,135.51,135.44,6.98621]
[1767632327167,93.9036,135.51,135.44,0.33961]
[1767632327375,6.6438,135.5,135.44,0.33961]
[1767632330373,2.91197647,135.5,135.41,6.98741]
[1767632330771,2.91197647,135.5,135.41,6.6478]
[1767632330962,6.6442,135.49,135.43,0.33961]
[1767632333372,6.6448,135.48,135.41,0.31707452]
[1767632334178,6.6453,135.47,135.41,0.31707452]
[1767632335276,6.6457,135.46,135.38,6.96627452]
[1767632335576,87.22,135.46,135.38,6.96627452]
[1767632336561,8.50915113,135.45,135.38,6.96627452]
[1767632337177,6.6462,135.45,135.38,6.96627452]
[1767632340976,8.50915113,135.45,135.38,6.96627452]
[1767632341982,8.50915113,135.45,135.39,0.31774411]
[1767632343277,8.50915113,135.45,135.39,6.96684411]
[1767632347282,1.86295113,135.45,135.39,6.96684411]
[1767632349184,1.86295113,135.45,135.39,0.31774411]
[1767632349384,8.50925113,135.45,135.38,6.6496]
[1767632350689,8.50925113,135.45,135.38,6.96734411]
[1767632352898,1.86295113,135.41,135.35,0.31774411]
[1767632354199,89.10295113,135.45,135.37,0.31774411]
[1767632355087,1.86295113,135.43,135.37,6.96774411]
[1767632355291,1.86295113,135.43,135.37,6.65]
[1767632356495,8.51015113,135.43,135.36,6.6505]
[1767632358104,1.86295113,135.41,135.35,0.31774411]
[1767632358600,1.86295113,135.41,135.35,6.96874411]
[1767632360296,1.86295113,135.41,135.36,6.6505]
[1767632360804,1.86295113,135.43,135.36,6.96824411]
[1767632361097,1.86295113,135.43,135.37,0.31774411]
[1767632361801,8.51005113,135.43,135.37,0.31774411]
[1767632365201,1.86295113,135.43,135.37,6.96774411]
[1767632368400,1.86295113,135.44,135.39,0.31774411]
[1767632370007,1.86295113,135.44,135.39,6.96674411]
[1767632378511,93.8862,135.45,135.39,6.96674411]
[1767632379811,87.24,135.45,135.39,6.96674411]
[1767632380303,87.24,135.45,135.41,0.32922028]
[1767632380504,1.86295113,135.46,135.41,0.32922028]
[1767632380999,93.8852,135.47,135.41,0.32922028]
[1767632381204,87.24,135.47,135.43,0.32922028]
[1767632383714,87.24,135.47,135.44,0.32922028]
[1767632384505,8.50705113,135.5,135.44,0.32922028]
[1767632391621,8.50705113,135.5,135.43,6.647]
[1767632392017,1.86295113,135.48,135.43,6.647]
[1767632392515,1.86295113,135.48,135.42,0.32922028]
[1767632392710,6.6443,135.49,135.42,0.32922028]
[1767632392910,1.86295113,135.48,135.42,0.32922028]
[1767632393519,1.86295113,135.46,135.4,6.97596321]
[1767632396624,6.6453,135.47,135.4,6.97596321]
[1767632400818,9.55462241,135.49,135.41,6.648]
[1767632401019,2.91012241,135.51,135.42,0.34311998]
[1767632401225,90.13012241,135.51,135.42,0.34311998]
[1767632401426,6.6441,135.5,135.43,6.99021998]
[1767632403620,6.6441,135.5,135.39,103.4307]
[1767632403621,13.99412669,135.49,135.39,0.34311998]
[1767632403823,11.08400428,135.48,135.39,0.34311998]
[1767632404026,2.91012241,135.49,135.39,0.34311998]
[1767632404224,11.0828036,135.48,135.39,0.34311998]
[1767632404419,5.58172148,135.47,135.39,0.34311998]
[1767632404624,6.6456,135.46,135.39,6.99221998]
[1767632405931,90.13012241,135.45,135.37,6.99271998]
[1767632406740,90.13012241,135.45,135.37,0.34311998]
[1767632407935,6.6477,135.42,135.35,0.34311998]
[1767632408129,6.6477,135.42,135.34,6.6511]
[1767632408725,6.6477,135.42,135.33,0.34311998]
[1767632408726,2.91012241,135.41,135.33,0.34311998]
[1767632409025,2.91012241,135.43,135.33,0.34311998]
[1767632410229,90.13012241,135.45,135.36,0.34311998]
[1767632410428,103.342,135.51,135.36,0.34311998]
[1767632410429,9.55612241,135.46,135.36,0.34311998]
[1767632410623,87.24,135.44,135.36,0.34311998]
[1767632411539,87.24,135.44,135.38,6.6495]
[1767632413136,87.24,135.44,135.39,6.649]
[1767632413633,87.24,135.44,135.38,0.34311998]
[1767632414238,87.24,135.44,135.38,6.99251998]
[1767632414744,87.24,135.44,135.39,0.34311998]
[1767632415246,9.55512241,135.48,135.39,0.34311998]
[1767632415430,6.645,135.48,135.39,0.34311998]
[1767632415741,87.24,135.48,135.41,6.648]
[1767632415941,87.24,135.48,135.41,6.99111998]
[1767632416537,2.91012241,135.5,135.43,6.647]
[1767632416738,5.58402406,135.49,135.43,6.99011998]
[1767632417044,6.6434,135.51,135.43,6.99011998]
[1767632417231,11.08804861,135.5,135.43,6.99011998]
[1767632417436,5.58385285,135.49,135.43,6.99011998]
[1767632417932,5.58385285,135.49,135.39,103.4264]
[1767632417933,5.58385285,135.49,135.41,6.6478]
[1767632419640,6.6448,135.48,135.41,6.6478]
[1767632420242,96.79412241,135.5,135.42,6.99071998]
[1767632420849,96.79412241,135.5,135.43,6.647]
[1767632421039,90.15012241,135.5,135.43,6.99011998]
[1767632421346,87.24,135.5,135.43,6.99011998]
[1767632422745,87.24,135.5,135.45,0.34311998]
[1767632423548,87.24,135.5,135.45,6.98921998]
[1767632424051,87.24,135.5,135.45,0.34311998]
[1767632424245,2.91012241,135.54,135.45,0.34311998]
[1767632424443,90.15012241,135.54,135.45,0.34311998]
[1767632425744,96.79202241,135.54,135.46,6.6455]
[1767632426549,6.6423,135.53,135.45,0.34311998]
[1767632427947,6.6428,135.52,135.44,6.6464]
[1767632428254,6.6428,135.52,135.44,6.98951998]
[1767632428654,6.6428,135.52,135.45,6.6461]
[1767632429260,96.79232241,135.54,135.45,6.6461]
[1767632429552,93.8822,135.54,135.46,6.98871998]
[1767632429951,6.6422,135.53,135.46,6.98871998]
[1767632430353,6.6422,135.53,135.46,0.34311998]
[1767632430553,6.6427,135.52,135.44,6.98931998]
[1767632432051,193.46982241,135.54,135.42,6.97185171]
[1767632432257,2.91012241,135.52,135.42,6.97185171]
[1767632432458,5.67361348,135.51,135.42,0.32455171]
[1767632433149,2.91012241,135.52,135.42,0.32455171]
[1767632433556,6.6432,135.51,135.43,6.6471]
[1767632433960,2.91012241,135.52,135.43,6.6471]
[1767632434160,5.67360501,135.51,135.43,6.6471]
[1767632434355,193.46982241,135.54,135.44,0.32455171]
[1767632434659,11.18290241,135.53,135.44,6.97105171]
[1767632434858,5.67394411,135.52,135.44,6.97105171]
[1767632435061,193.46982241,135.54,135.44,6.97105171]
[1767632435357,6.6432,135.51,135.43,6.6471]
[1767632435549,8.58213059,135.5,135.41,0.32455171]
[1767632435749,87.22,135.49,135.41,0.32455171]
[1767632435952,6.6447,135.48,135.41,6.97245171]
[1767632436153,87.22,135.49,135.41,6.97245171]
[1767632436954,6.6447,135.48,135.41,6.97245171]
[1767632437560,87.22,135.49,135.41,6.97245171]
[1767632438565,93.8646,135.49,135.41,6.97245171]
[1767632438857,87.22,135.49,135.41,6.97245171]
[1767632439860,6.6447,135.48,135.41,6.97245171]
[1767632440562,2.91012241,135.48,135.39,0.32455171]
[1767632440862,2.91012241,135.46,135.39,0.32455171]
[1767632441462,6.6461,135.45,135.37,0.32455171]
[1767632441659,90.13012241,135.44,135.35,0.32455171]
[1767632441863,87.22,135.43,135.35,0.32455171]
[1767632442064,87.22,135.43,135.36,6.97505171]
[1767632442653,87.22,135.43,135.38,0.32455171]
[1767632442857,87.22,135.45,135.38,0.32455171]
[1767632443058,9.55622241,135.46,135.38,0.32455171]
[1767632444161,93.865,135.48,135.39,0.32455171]
[1767632445658,93.865,135.48,135.4,6.6485]
[1767632446666,6.6439,135.5,135.42,0.32455171]
[1767632447660,6.6439,135.5,135.43,0.32455171]
[1767632448264,6.6439,135.5,135.43,6.97165171]
[1767632448859,90.15012241,135.51,135.43,6.97165171]
[1767632449263,90.15012241,135.51,135.43,0.32455171]
[1767632449560,90.15012241,135.51,135.42,6.97195171]
[1767632450571,6.6441,135.5,135.42,6.97195171]
[1767632451074,90.15012241,135.51,135.42,0.32455171]
[1767632451866,2.91012241,135.49,135.39,0.32455171]
[1767632452176,2.91012241,135.47,135.37,0.32455171]
[1767632452372,87.22,135.46,135.35,0.32455171]
[1767632452678,2.91012241,135.45,135.35,0.32455171]
[1767632452971,9.55672241,135.45,135.37,6.65]
[1767632453278,6.6466,135.45,135.37,6.97455171]
[1767632453978,6.6466,135.45,135.38,6.6495]
[1767632454281,87.22,135.46,135.38,6.6495]
[1767632455673,6.6462,135.45,135.37,0.32455171]
[1767632456673,6.6466,135.44,135.37,6.97455171]
[1767632456981,87.22,135.46,135.35,0.31949403]
[1767632456982,2.91012241,135.45,135.35,0.31949403]
[1767632457184,5.67444646,135.44,135.35,0.31949403]
[1767632457384,2.91012241,135.45,135.35,0.31949403]
[1767632457575,5.67444646,135.44,135.35,0.31949403]
[1767632457876,2.91012241,135.45,135.35,0.31949403]
[1767632458076,2.91012241,135.45,135.36,6.96999403]
[1767632458282,2.91012241,135.45,135.37,0.31949403]
[1767632458481,8.51012951,135.44,135.37,0.31949403]
[1767632459085,6.6471,135.43,135.34,8.83412354]
[1767632459382,6.6471,135.43,135.34,2.18292354]
[1767632460584,6.6471,135.43,135.35,6.651]
[1767632461286,6.6462,135.45,135.37,0.32113698]
[1767632461487,1.86342951,135.47,135.39,0.32113698]
[1767632461785,89.10342951,135.47,135.39,0.32113698]
[1767632462883,89.10342951,135.47,135.4,6.96973698]
[1767632462884,95.74862951,135.47,135.4,6.96973698]
[1767632463690,6.6457,135.46,135.4,0.32113698]
[1767632465081,6.6457,135.46,135.4,6.96963698]
[1767632465389,87.24,135.47,135.4,6.96963698]
[1767632466191,6.6458,135.46,135.4,0.32113698]
[1767632466986,87.24,135.47,135.4,6.96963698]
[1767632467390,87.24,135.47,135.4,0.32113698]
[1767632467595,93.8855,135.47,135.4,0.32113698]
[1767632467985,93.8855,135.47,135.38,1.86342951]
[1767632468289,8.50922951,135.46,135.38,8.51272951]
[1767632468991,8.50922951,135.46,135.38,6.6493]
[1767632470996,8.50922951,135.46,135.39,6.649]
[1767632471492,1.86342951,135.46,135.39,6.649]
[1767632471796,93.8852,135.47,135.39,6.649]
[1767632471998,1.86342951,135.46,135.39,6.649]
[1767632473693,8.50912951,135.46,135.39,6.649]
[1767632475993,93.8852,135.47,135.4,6.96973698]
[1767632476191,93.8852,135.47,135.41,0.32113698]
[1767632480496,87.24,135.47,135.38,6.97023698]
[1767632480696,13.02205778,135.46,135.38,6.97023698]
[1767632480895,1.86342951,135.46,135.38,6.97023698]
[1767632481703,1.86342951,135.44,135.38,6.97023698]
[1767632482706,8.51032951,135.44,135.37,6.65]
[1767632482908,1.86342951,135.44,135.36,0.32113698]
[1767632483098,1.86342951,135.42,135.36,0.32113698]
[1767632484601,1.86342951,135.42,135.36,6.97143698]
[1767632485400,8.51112951,135.42,135.36,0.32113698]
[1767632485602,8.51112951,135.42,135.34,6.6511]
[1767632485603,89.10342951,135.42,135.34,6.97223698]
[1767632485803,89.10342951,135.42,135.32,34.37275193]
[1767632485804,1.86342951,135.4,135.32,0.32113698]
[1767632486103,1.86342951,135.4,135.29,87.24]
[1767632486104,1.86342951,135.4,135.33,0.32113698]
[1767632488797,8.51212951,135.4,135.33,6.97283698]